bitfinex/quotes_SOLUSD_20250425
["timestamp","ask_amount","ask_price","bid_price","bid_amount"]
[1745574993113,1.29787742,154.32,154.29,0.063]
[1745574993409,1.29787742,154.32,154.29,10.81212418]
[1745574993793,12.0470016,154.32,154.29,0.063]
[1745574994693,1.29787742,154.32,154.29,0.063]
[1745574994892,12.0470016,154.32,154.29,0.063]
[1745574995194,10.74912418,154.31,154.29,0.063]
[1745574995400,12.0470016,154.3,154.29,0.063]
[1745574995610,1.29787742,154.3,154.29,0.063]
[1745574997008,12.0470016,154.3,154.29,0.063]
[1745574997408,12.18916317,154.3,154.29,0.063]
[1745574997811,27.44003899,154.3,154.29,0.063]
[1745574998010,38.18916317,154.3,154.29,0.063]
[1745574999420,38.18916317,154.3,154.25,0.063]
[1745574999421,46.30814886,154.26,154.25,0.063]
[1745574999723,76.91943461,154.26,154.25,0.063]
[1745574999890,26.0,154.23,154.22,0.063]
[1745575000095,38.0470016,154.23,154.22,0.063]
[1745575001203,18.64964886,154.22,154.2,0.063]
[1745575001424,12.0470016,154.21,154.2,0.063]
[1745575002128,30.83881203,154.21,154.2,0.063]
[1745575011336,44.64964886,154.18,154.17,0.063]
[1745575011649,56.83881203,154.18,154.17,0.063]
[1745575012359,60.12204821,154.18,154.17,0.063]
[1745575015445,49.37292403,154.18,154.17,0.063]
[1745575015760,60.12204821,154.18,154.17,0.063]
[1745575017158,56.83881203,154.18,154.17,0.063]
[1745575017342,56.69665046,154.18,154.17,0.063]
[1745575017546,38.0470016,154.18,154.17,0.063]
[1745575018063,1.29787742,154.18,154.17,0.063]
[1745575018650,20.31787742,154.19,154.17,0.063]
[1745575020767,10.74912418,154.18,154.17,0.063]
[1745575021359,12.0470016,154.19,154.17,0.063]
[1745575022041,1.29787742,154.19,154.17,0.063]
[1745575022241,1.29787742,154.19,154.17,10.81212418]
[1745575022438,27.29787742,154.21,154.18,10.74912418]
[1745575022665,1.29787742,154.21,154.19,10.74912418]
[1745575022874,1.29787742,154.22,154.19,10.74912418]
[1745575023047,1.29787742,154.22,154.21,10.74912418]
[1745575023254,10.74912418,154.26,154.21,10.74912418]
[1745575023566,1.29787742,154.25,154.21,10.74912418]
[1745575023941,1.29787742,154.25,154.22,10.74912418]
[1745575024136,1.29787742,154.25,154.23,10.74912418]
[1745575024342,12.0470016,154.28,154.24,10.74912418]
[1745575024563,38.0470016,154.28,154.24,10.74912418]
[1745575024941,38.0470016,154.28,154.21,12.98110186]
[1745575025137,10.74912418,154.27,154.21,12.98110186]
[1745575025341,1.29787742,154.26,154.23,10.74912418]
[1745575026268,1.29787742,154.26,154.23,17.23294011]
[1745575027560,12.0470016,154.26,154.22,10.74912418]
[1745575027738,10.74912418,154.25,154.2,10.74912418]
[1745575027937,1.29787742,154.24,154.17,6.6001]
[1745575028153,12.0470016,154.24,154.19,10.74912418]
[1745575028778,10.74912418,154.23,154.17,6.6001]
[1745575029070,1.29787742,154.22,154.19,10.74912418]
[1745575029260,10.74912418,154.23,154.19,10.74912418]
[1745575029465,1.29787742,154.22,154.17,6.6001]
[1745575029671,1.29787742,154.22,154.19,10.74912418]
[1745575032060,1.29787742,154.22,154.18,10.74912418]
[1745575032969,10.74912418,154.21,154.17,0.063]
[1745575033175,12.0470016,154.2,154.17,0.063]
[1745575034172,10.74912418,154.18,154.17,0.063]
[1745575034792,30.83881203,154.18,154.17,0.063]
[1745575035149,59.96793621,154.18,154.17,0.063]
[1745575038450,18.79181043,154.17,154.16,0.063]
[1745575038651,40.29005879,154.17,154.16,0.063]
[1745575041083,40.29005879,154.17,154.13,0.063]
[1745575041384,55.54093461,154.14,154.13,0.063]
[1745575041876,36.74912418,154.14,154.13,0.063]
[1745575042583,26.0,154.14,154.13,0.063]
[1745575042883,36.74912418,154.14,154.13,0.063]
[1745575043583,26.0,154.14,154.13,0.063]
[1745575044090,36.74912418,154.14,154.13,0.063]
[1745575044492,10.74912418,154.14,154.13,0.063]
[1745575044789,12.0470016,154.14,154.13,0.063]
[1745575045790,38.0470016,154.14,154.13,0.063]
[1745575047997,56.83881203,154.14,154.13,0.063]
[1745575049075,30.83881203,154.14,154.13,0.063]
[1745575055773,20.08968785,154.14,154.13,0.063]
[1745575055985,30.83881203,154.14,154.13,0.063]
[1745575056184,38.0470016,154.14,154.13,0.063]
[1745575056680,12.0470016,154.14,154.13,0.063]
[1745575056988,36.74912418,154.14,154.13,0.063]
[1745575057702,10.74912418,154.14,154.13,0.063]
[1745575057902,36.74912418,154.14,154.13,0.063]
[1745575058511,55.54093461,154.14,154.13,0.063]
[1745575058879,29.54093461,154.14,154.13,0.063]
[1745575060105,47.28093461,154.14,154.13,0.063]
[1745575061909,10.74912418,154.13,154.12,0.063]
[1745575062113,12.0470016,154.13,154.12,0.063]
[1745575063609,202.36,154.2,154.12,0.063]
[1745575063816,10.74912418,154.17,154.13,10.74912418]
[1745575063993,1.29787742,154.16,154.12,12.37492418]
[1745575064498,12.0470016,154.16,154.12,1.6258]
[1745575064806,10.74912418,154.14,154.12,1.6258]
[1745575065594,1.29787742,154.13,154.12,1.6258]
[1745575065805,1.29787742,154.13,154.12,0.063]
[1745575065806,12.0470016,154.13,154.12,0.063]
[1745575066391,27.29787742,154.13,154.12,0.063]
[1745575066816,38.0470016,154.13,154.12,0.063]
[1745575067397,27.29787742,154.13,154.12,0.063]
[1745575068398,10.74912418,154.17,154.12,10.81212418]
[1745575068594,1.29787742,154.16,154.12,10.81212418]
[1745575068794,12.0470016,154.16,154.12,10.81212418]
[1745575069308,12.0470016,154.16,154.12,6.55145055]
[1745575069722,10.74912418,154.15,154.12,6.55145055]
[1745575073224,10.74912418,154.16,154.12,6.55145055]
[1745575073398,1.29787742,154.15,154.12,17.30057473]
[1745575074321,1.29787742,154.18,154.14,12.29592418]
[1745575074627,1.29787742,154.18,154.15,10.74912418]
[1745575074830,1.29787742,154.18,154.15,13.15303075]
[1745575075322,245.46,154.2,154.16,10.74912418]
[1745575075498,43.1,154.2,154.17,10.74912418]
[1745575075694,43.1,154.2,154.18,6.48592554]
[1745575075893,1.29787742,154.19,154.17,6.48617811]
[1745575076125,12.0470016,154.19,154.17,6.48617811]
[1745575077403,43.1,154.2,154.17,6.48617811]
[1745575077704,53.84912418,154.2,154.17,6.48617811]
[1745575078631,53.84912418,154.2,154.18,2.40618757]
[1745575078815,1.29787742,154.19,154.18,2.40618757]
[1745575079727,53.84912418,154.2,154.17,6.48617811]
[1745575081632,43.1,154.2,154.17,10.74912418]
[1745575082009,26.0,154.2,154.17,10.74912418]
[1745575083442,0.03,154.23,154.19,10.74912418]
[1745575083608,0.03,154.23,154.16,10.74912418]
[1745575083609,0.03,154.23,154.21,17.23359911]
[1745575084027,0.03,154.23,154.21,6.48447493]
[1745575084540,0.03,154.23,154.2,6.4849142]
[1745575085138,10.77912418,154.23,154.19,6.48534603]
[1745575085319,10.74912418,154.21,154.17,10.74912418]
[1745575085932,10.74912418,154.21,154.18,6.48592554]
[1745575086139,12.0470016,154.22,154.18,6.48592554]
[1745575086341,12.0470016,154.22,154.19,2.39960599]
[1745575086842,12.0470016,154.22,154.19,8.88496504]
[1745575087039,12.0470016,154.22,154.19,6.48535905]
[1745575087220,1.29787742,154.22,154.19,17.23448323]
[1745575087542,0.03,154.23,154.2,10.74912418]
[1745575088550,0.03,154.23,154.2,17.23381129]
[1745575091847,0.03,154.23,154.2,6.48468711]
[1745575092139,10.77912418,154.23,154.2,6.48468711]
[1745575092729,10.77912418,154.23,154.19,6.48537692]
[1745575092925,10.74912418,154.21,154.17,10.74912418]
[1745575093326,12.0470016,154.22,154.17,10.74912418]
[1745575093732,10.74912418,154.21,154.16,10.74912418]
[1745575093922,1.29787742,154.2,154.17,6.48634624]
[1745575094238,12.0470016,154.2,154.17,6.48634624]
[1745575094749,1.29787742,154.2,154.17,6.48634624]
[1745575096748,12.0470016,154.2,154.17,6.48634624]
[1745575097134,1.29787742,154.2,154.17,6.48634624]
[1745575098950,12.0470016,154.2,154.17,6.48634624]
[1745575099248,1.29787742,154.2,154.17,6.48634624]
[1745575099449,10.74912418,154.2,154.17,6.48634624]
[1745575099979,27.29787742,154.21,154.16,10.74912418]
[1745575100152,10.74912418,154.2,154.16,10.74912418]
[1745575100553,10.74912418,154.2,154.17,2.39572873]
[1745575100925,10.74912418,154.2,154.17,8.88188998]
[1745575101423,6.89296874,154.2,154.17,6.48616125]
[1745575101619,26.0,154.21,154.17,13.37912999]
[1745575102345,6.92296874,154.23,154.19,6.89296874]
[1745575102546,8.19084616,154.22,154.17,13.37912999]
[1745575102749,8.19084616,154.22,154.18,6.89296874]
[1745575103653,8.19084616,154.22,154.15,22.70512375]
[1745575103952,8.19084616,154.22,154.18,6.89296874]
[1745575104129,1.29787742,154.22,154.18,6.89296874]
[1745575104330,6.92296874,154.23,154.19,6.89296874]
[1745575104954,1.29787742,154.22,154.18,6.89296874]
[1745575105157,6.92296874,154.23,154.18,6.89296874]
[1745575106252,6.92296874,154.23,154.2,6.4850843]
[1745575107559,6.92296874,154.23,154.19,6.48550489]
[1745575107871,6.89296874,154.22,154.19,6.48550489]
[1745575108356,6.92296874,154.23,154.19,6.48550489]
[1745575108656,6.92296874,154.23,154.2,2.4007843]
[1745575109150,6.92296874,154.23,154.19,6.48550489]
[1745575109457,6.89296874,154.22,154.19,6.48550489]
[1745575111038,6.92296874,154.23,154.19,6.48550489]
[1745575111357,6.92296874,154.23,154.2,8.88681306]
[1745575111861,6.89296874,154.22,154.2,8.88681306]
[1745575112360,6.89296874,154.22,154.2,6.48496666]
[1745575113159,6.89296874,154.22,154.21,2.4035479]
[1745575114556,8.19084616,154.22,154.21,2.4035479]
[1745575115661,6.89296874,154.22,154.21,2.4035479]
[1745575115835,8.22084616,154.23,154.21,2.4035479]
[1745575116035,0.03,154.23,154.22,6.89296874]
[1745575116636,0.03,154.23,154.21,8.88803603]
[1745575116838,0.03,154.23,154.22,2.4035479]
[1745575118734,6.92296874,154.23,154.22,2.4035479]
[1745575122169,6.92296874,154.23,154.17,6.89296874]
[1745575122355,8.19084616,154.22,154.18,6.48576943]
[1745575122567,6.89296874,154.21,154.18,6.48576943]
[1745575122764,1.29787742,154.22,154.18,6.48576943]
[1745575123065,6.89296874,154.21,154.18,6.48576943]
[1745575123252,6.89296874,154.21,154.19,2.41095264]
[1745575123450,6.89296874,154.22,154.19,2.41095264]
[1745575123774,6.92296874,154.23,154.19,2.41095264]
[1745575123946,6.89296874,154.22,154.19,2.41095264]
[1745575124267,6.89296874,154.22,154.2,2.41095264]
[1745575125441,6.89296874,154.22,154.21,2.41095264]
[1745575128864,32.92296874,154.23,154.21,2.41095264]
[1745575129373,26.03,154.23,154.22,2.41095264]
[1745575129676,32.92296874,154.23,154.22,2.41095264]
[1745575136379,26.03,154.23,154.22,2.41095264]
[1745575137379,34.22084616,154.23,154.22,2.41095264]
[1745575138176,27.32787742,154.23,154.22,2.41095264]
[1745575138382,26.03,154.23,154.22,2.41095264]
[1745575138683,34.22084616,154.23,154.22,2.41095264]
[1745575141058,26.03,154.23,154.22,2.41095264]
[1745575141252,0.03,154.23,154.22,2.41095264]
[1745575142586,34.22084616,154.23,154.22,2.41095264]
[1745575144876,27.32787742,154.23,154.22,2.41095264]
[1745575145077,26.03,154.23,154.22,2.41095264]
[1745575145579,32.92296874,154.23,154.22,2.41095264]
[1745575147379,0.03,154.23,154.22,2.41095264]
[1745575152093,0.03,154.23,154.22,8.89519592]
[1745575153359,0.03,154.23,154.22,25.0003836]
[1745575153964,0.03,154.23,154.22,106.34254517]
[1745575154284,0.03,154.27,154.26,6.89296874]
[1745575154488,0.03,154.27,154.26,9.30392138]
[1745575155487,0.03,154.27,154.26,15.78648328]
[1745575156488,0.03,154.27,154.26,2.41095264]
[1745575157586,8.22084616,154.27,154.26,2.41095264]
[1745575158194,8.22084616,154.27,154.22,1.6666]
[1745575158378,6.89296874,154.26,154.22,1.6666]
[1745575158687,6.89296874,154.26,154.23,2.40471336]
[1745575158894,6.89296874,154.26,154.23,8.88828802]
[1745575159378,6.89296874,154.26,154.24,2.40471336]
[1745575159779,6.89296874,154.26,154.24,8.88807943]
[1745575160006,6.92296874,154.27,154.24,8.88807943]
[1745575160304,6.92296874,154.27,154.25,2.40471336]
[1745575160807,0.03,154.27,154.25,2.40471336]
[1745575161088,1.32787742,154.27,154.24,6.48336607]
[1745575161679,8.22084616,154.27,154.24,6.48336607]
[1745575163178,8.22084616,154.27,154.25,2.40179979]
[1745575163770,8.22084616,154.27,154.24,6.48336607]
[1745575164193,8.22084616,154.27,154.23,6.48363584]
[1745575164581,8.22084616,154.27,154.24,2.4017217]
[1745575164990,6.89296874,154.26,154.24,2.4017217]
[1745575165488,6.92296874,154.27,154.25,2.4017217]
[1745575166094,6.92296874,154.27,154.25,6.48298107]
[1745575167571,6.92296874,154.27,154.24,6.48340248]
[1745575167771,6.89296874,154.26,154.24,6.48340248]
[1745575168098,6.89296874,154.26,154.25,2.40315915]
[1745575168988,0.03,154.27,154.25,2.40315915]
[1745575169188,6.92296874,154.27,154.25,2.40315915]
[1745575169469,6.92296874,154.27,154.25,8.88609352]
[1745575169666,6.92296874,154.27,154.25,6.48293437]
[1745575170507,6.92296874,154.27,154.22,6.48424328]
[1745575170695,0.03,154.27,154.22,13.37721202]
[1745575170996,6.92296874,154.27,154.22,13.37721202]
[1745575171194,6.92296874,154.27,154.23,2.40350092]
[1745575171397,6.92296874,154.27,154.24,6.48340248]
[1745575171886,6.92296874,154.27,154.25,2.40350092]
[1745575172501,6.92296874,154.27,154.24,6.48340248]
[1745575174302,6.92296874,154.27,154.25,2.40384573]
[1745575175201,6.92296874,154.27,154.24,6.48340248]
[1745575175605,0.03,154.27,154.24,6.48340248]
[1745575175901,6.92296874,154.27,154.24,6.48340248]
[1745575176200,0.03,154.27,154.24,6.48340248]
[1745575176503,1.32787742,154.27,154.24,6.48340248]
[1745575176879,0.03,154.27,154.25,2.40463834]
[1745575177602,0.03,154.27,154.25,8.88741295]
[1745575178104,0.03,154.27,154.25,13.37574335]
[1745575178606,0.03,154.27,154.26,2.40586789]
[1745575179695,0.03,154.27,154.26,8.88842979]
[1745575183513,0.03,154.27,154.26,2.40586789]
[1745575184491,6.92296874,154.27,154.26,2.40586789]
[1745575185084,0.03,154.27,154.26,2.40586789]
[1745575191404,0.03,154.27,154.26,8.88842979]
[1745575192081,0.03,154.27,154.26,15.78139853]
[1745575200323,0.03,154.27,154.26,8.88842979]
[1745575200819,0.03,154.27,154.26,15.78139853]
[1745575201211,6.92296874,154.27,154.26,2.40586789]
[1745575201721,26.03,154.27,154.26,2.40586789]
[1745575201929,0.03,154.27,154.26,15.78139853]
[1745575202109,0.03,154.27,154.26,8.88842979]
[1745575202310,0.03,154.27,154.26,2.40586789]
[1745575202519,6.92296874,154.27,154.26,2.40586789]
[1745575202840,32.92296874,154.27,154.26,2.40586789]
[1745575203201,0.03,154.27,154.26,8.88842979]
[1745575203411,0.03,154.27,154.26,15.78139853]
[1745575203834,0.03,154.27,154.26,8.88842979]
[1745575204002,0.03,154.27,154.26,15.78139853]
[1745575205414,0.03,154.27,154.26,8.88842979]
[1745575207239,0.03,154.27,154.26,15.78139853]
[1745575208040,0.03,154.27,154.26,2.40586789]
[1745575208334,8.22084616,154.27,154.26,2.40586789]
[1745575210122,6.92296874,154.27,154.26,2.40586789]
[1745575210336,0.03,154.27,154.26,2.40586789]
[1745575210845,6.92296874,154.27,154.26,2.40586789]
[1745575212032,0.03,154.27,154.26,2.40586789]
[1745575212626,6.92296874,154.27,154.26,2.40586789]
[1745575213044,0.03,154.27,154.26,8.88842979]
[1745575213248,0.03,154.27,154.26,15.78139853]
[1745575216024,0.03,154.29,154.26,143.19424739]
[1745575216226,0.03,154.32,154.3,6.4872]
[1745575216430,0.03,154.32,154.31,35.76049758]
[1745575216950,0.03,154.32,154.31,38.16636547]
[1745575217255,1e-08,154.32,154.31,58.5213759]
[1745575217955,1e-08,154.32,154.31,65.0018373]
[1745575218338,1e-08,154.32,154.31,37.42996234]
[1745575218759,1e-08,154.32,154.31,18.63815191]
[1745575219444,1e-08,154.32,154.31,22.49094961]
[1745575220345,1e-08,154.32,154.31,19.63209573]
[1745575223068,1e-08,154.34,154.33,26.0]
[1745575223232,0.03,154.38,154.37,26.0]
[1745575223434,0.03,154.38,154.37,38.04095393]
[1745575224056,0.03,154.38,154.37,40.44682182]
[1745575224362,0.03,154.38,154.37,46.92476442]
[1745575224559,0.03,154.39,154.37,76.46234129]
[1745575224734,0.03,154.39,154.38,12.38446644]
[1745575225246,0.03,154.39,154.38,14.79033433]
[1745575226160,0.03,154.39,154.38,13.15163433]
[1745575226667,0.03,154.39,154.38,19.62915732]
[1745575227551,0.03,154.39,154.38,8.88339088]
[1745575227750,0.03,154.39,154.38,17.22328943]
[1745575230368,0.03,154.39,154.38,6.47752299]
[1745575232466,0.03,154.39,154.33,40.34]
[1745575232664,10.77576644,154.39,154.34,17.2249682]
[1745575233249,10.77576644,154.39,154.35,10.74576644]
[1745575233751,0.03,154.39,154.35,10.74576644]
[1745575234269,0.03,154.39,154.36,10.74576644]
[1745575235159,0.03,154.39,154.38,10.74576644]
[1745575235757,0.03,154.39,154.35,1.2955045]
[1745575235958,0.03,154.39,154.37,10.74576644]
[1745575236357,0.03,154.39,154.38,6.47752299]
[1745575237780,0.03,154.39,154.38,17.22328943]
[1745575239681,0.03,154.39,154.38,6.47752299]
[1745575240184,0.03,154.39,154.38,17.22328943]
[1745575241391,0.03,154.39,154.38,6.47752299]
[1745575241579,0.03,154.39,154.38,17.22328943]
[1745575242287,0.03,154.39,154.38,6.47752299]
[1745575242607,0.03,154.39,154.38,17.22328943]
[1745575245880,0.03,154.39,154.38,6.47752299]
[1745575246184,10.77576644,154.39,154.37,6.47777432]
[1745575246574,12.04364386,154.38,154.35,6.47839884]
[1745575246979,10.74576644,154.37,154.35,6.47839884]
[1745575247279,1.29787742,154.38,154.35,6.47839884]
[1745575247280,10.74576644,154.38,154.35,6.47839884]
[1745575247706,1.32787742,154.39,154.35,6.47839884]
[1745575247907,10.74576644,154.38,154.35,6.47839884]
[1745575250153,10.74576644,154.36,154.31,6.4804614]
[1745575250288,10.74576644,154.33,154.3,6.54372301]
[1745575250487,1.29787742,154.35,154.3,0.063]
[1745575250488,10.74576644,154.31,154.3,0.063]
[1745575250680,2.80947742,154.34,154.3,6.54386505]
[1745575250880,10.74576644,154.32,154.3,6.54386505]
[1745575251381,10.74576644,154.32,154.3,0.063]
[1745575251781,10.74576644,154.32,154.3,6.54386169]
[1745575252084,10.74576644,154.33,154.3,0.063]
[1745575253414,10.74576644,154.33,154.3,6.54388139]
[1745575254913,1.29787742,154.36,154.3,6.54388139]
[1745575255119,10.74576644,154.34,154.3,17.28964783]
[1745575255320,10.74576644,154.33,154.3,6.54388139]
[1745575256319,1.29787742,154.36,154.31,10.74576644]
[1745575256496,1.29787742,154.36,154.3,6.54388139]
[1745575256497,1.29787742,154.36,154.32,10.74576644]
[1745575256819,12.04364386,154.36,154.32,10.74576644]
[1745575257632,10.74576644,154.34,154.3,0.063]
[1745575257815,10.74576644,154.33,154.3,0.063]
[1745575258023,10.74576644,154.34,154.3,0.063]
[1745575259797,10.74576644,154.31,154.3,0.063]
[1745575260417,39.70374386,154.31,154.3,0.063]
[1745575260587,58.49555429,154.31,154.3,0.063]
[1745575261621,32.49555429,154.31,154.3,0.063]
[1745575262021,26.0,154.27,154.24,0.063]
[1745575262205,10.74576644,154.25,154.24,0.063]
[1745575263006,67.91224331,154.25,154.24,0.063]
[1745575263328,31.16647687,154.25,154.24,0.063]
[1745575264312,41.91224331,154.25,154.24,0.063]
[1745575266520,18.79181043,154.24,154.23,0.063]
[1745575266827,41.58122073,154.24,154.23,0.063]
[1745575269213,44.79181043,154.22,154.21,0.063]
[1745575269407,56.83545429,154.22,154.21,0.063]
[1745575269746,56.83545429,154.22,154.16,0.063]
[1745575269944,10.74576644,154.17,154.16,0.063]
[1745575270116,12.04364386,154.17,154.16,0.063]
[1745575271242,1.29787742,154.17,154.16,0.063]
[1745575272647,12.04364386,154.17,154.16,0.063]
[1745575274942,30.83545429,154.17,154.16,0.063]
[1745575275250,41.58122073,154.17,154.16,0.063]
[1745575276712,30.83545429,154.17,154.16,0.063]
[1745575278444,41.58122073,154.17,154.16,0.063]
[1745575281331,48.06756697,154.17,154.16,0.063]
[1745575281543,40.28334331,154.16,154.15,0.063]
[1745575282955,44.79181043,154.13,154.12,0.063]
[1745575283127,70.13757687,154.13,154.12,0.063]
[1745575283325,18.79181043,154.12,154.1,0.063]
[1745575283521,12.04364386,154.11,154.1,0.063]
[1745575283941,30.83545429,154.11,154.1,0.063]
[1745575284151,26.0,154.08,154.07,0.063]
[1745575284329,48.93157187,154.08,154.07,0.063]
[1745575284839,38.18580543,154.08,154.07,0.063]
[1745575285158,48.93157187,154.08,154.07,0.063]
[1745575287022,67.58122073,154.08,154.07,0.063]
[1745575287733,18.79181043,154.07,154.06,0.063]
[1745575287927,44.13757687,154.07,154.06,0.063]
[1745575288459,44.13757687,154.07,154.03,0.063]
[1745575288647,18.79181043,154.05,154.03,0.063]
[1745575288833,29.53757687,154.05,154.03,0.063]
[1745575289029,30.83545429,154.04,154.03,0.063]
[1745575290677,30.83545429,154.04,154.03,0.063]
[1745575291531,30.69329272,154.04,154.03,0.063]
[1745575292051,30.83545429,154.04,154.03,0.063]
[1745575293168,1.29787742,154.04,154.03,0.063]
[1745575293467,1.29787742,154.05,154.03,0.063]
[1745575293649,26.0,154.04,154.03,0.063]
[1745575296741,27.29787742,154.04,154.03,0.063]
[1745575297264,38.04364386,154.04,154.03,0.063]
[1745575298185,56.83545429,154.04,154.03,0.063]
[1745575299456,18.79181043,154.03,154.02,0.063]
[1745575299759,29.53757687,154.03,154.02,0.063]
[1745575300257,30.83545429,154.03,154.02,0.063]
[1745575305558,18.64964886,154.01,154.0,0.063]
[1745575305882,55.92122073,154.01,154.0,0.063]
[1745575306054,45.17545429,154.01,154.0,0.063]
[1745575307669,55.92122073,154.01,154.0,0.063]
[1745575309085,41.58122073,154.01,154.0,0.063]
[1745575309273,45.19545429,154.01,154.0,0.063]
[1745575310284,38.04364386,154.01,154.0,0.063]
[1745575310967,27.29787742,154.01,154.0,0.063]
[1745575311386,1.29787742,154.01,154.0,0.063]
[1745575311570,1.29787742,154.02,154.0,0.063]
[1745575312270,12.04364386,154.02,154.0,0.063]
[1745575312582,12.04364386,154.02,154.0,30.063]
[1745575313067,10.74576644,154.01,154.0,30.063]
[1745575314478,12.04364386,154.02,154.0,30.063]
[1745575315072,1.29787742,154.02,154.0,30.063]
[1745575315394,12.04364386,154.02,154.0,30.063]
[1745575318669,10.74576644,154.01,154.0,30.063]
[1745575318996,40.28334331,154.01,154.0,30.063]
[1745575319996,40.28334331,154.01,154.0,0.063]
[1745575320569,46.77642817,154.01,154.0,0.063]
[1745575320769,46.77642817,154.01,153.97,0.063]
[1745575320770,26.0,153.98,153.97,0.063]
[1745575321081,38.04364386,153.98,153.97,0.063]
[1745575328992,1.29787742,153.98,153.97,0.063]
[1745575329286,36.74576644,154.01,153.97,10.80876644]
[1745575329500,1.29787742,154.0,153.97,10.80876644]
[1745575329705,12.04364386,154.0,153.97,0.063]
[1745575329900,36.74576644,153.98,153.97,0.063]
[1745575330101,36.74576644,153.98,153.97,30.063]
[1745575331601,26.0,153.98,153.97,30.063]
[1745575332906,1.29787742,154.0,153.97,36.55760331]
[1745575333084,1.29787742,154.0,153.97,48.87906975]
[1745575333289,12.04364386,154.01,153.97,48.87906975]
[1745575333973,12.04364386,154.01,153.98,2.40612098]
[1745575334178,1.29787742,154.01,153.98,43.15188742]
[1745575334989,1.29787742,154.01,153.99,2.40612098]
[1745575336081,12.04364386,154.01,153.99,2.40612098]
[1745575336283,12.04364386,154.01,153.98,30.0]
[1745575336483,12.04364386,154.01,153.97,18.87906975]
[1745575336899,10.74576644,153.99,153.97,1.6387]
[1745575337201,12.04364386,153.99,153.97,1.6387]
[1745575338184,1.29787742,153.99,153.97,1.6387]
[1745575340604,26.0,154.0,153.97,1.6387]
[1745575340793,1.29787742,153.99,153.97,1.6387]
[1745575340981,27.29787742,154.0,153.97,1.6387]
[1745575341598,26.0,154.0,153.98,10.74576644]
[1745575341796,26.0,154.0,153.98,13.1515829]
[1745575342502,26.0,154.0,153.98,10.74576644]
[1745575343104,14.36,154.03,153.98,17.24002816]
[1745575343295,26.0,154.02,153.99,10.74576644]
[1745575343496,26.0,154.02,154.0,10.74576644]
[1745575343800,26.40364386,154.03,153.99,10.74576644]
[1745575344009,26.40364386,154.03,153.98,17.24002816]
[1745575344206,10.74576644,154.01,153.97,8.13334753]
[1745575344420,12.04364386,154.01,153.97,18.87911397]
[1745575344621,12.04364386,154.01,153.98,2.40582674]
[1745575345212,10.74576644,153.99,153.98,2.40582674]
[1745575345421,6.91202038,153.99,153.98,2.40582674]
[1745575345796,6.91202038,154.0,153.98,2.40582674]
[1745575345997,1.29787742,153.99,153.98,2.40582674]
[1745575346196,6.91202038,154.0,153.98,2.40582674]
[1745575346398,1.29787742,154.02,153.98,2.40582674]
[1745575346597,6.91202038,154.01,153.98,2.40582674]
[1745575346819,8.2098978,154.0,153.97,1.6387]
[1745575347222,1.29787742,154.0,153.97,1.6387]
[1745575347522,6.91202038,153.99,153.97,0.063]
[1745575349812,1.29787742,154.01,153.97,0.063]
[1745575349996,6.91202038,153.99,153.97,0.063]
[1745575350396,6.91202038,153.98,153.97,0.063]
[1745575351305,67.14170823,153.98,153.97,0.063]
[1745575351904,41.14170823,153.98,153.96,0.063]
[1745575352109,32.91202038,153.97,153.96,0.063]
[1745575353403,36.80963177,153.97,153.96,0.063]
[1745575355804,36.0962139,153.97,153.96,0.063]
[1745575356222,18.79181043,153.96,153.95,0.063]
[1745575356411,30.89931962,153.96,153.95,0.063]
[1745575356613,37.39451317,153.96,153.95,0.063]
[1745575356814,37.39451317,153.96,153.94,0.063]
[1745575357021,55.6014422,153.95,153.94,0.063]
[1745575357219,55.6014422,153.95,153.93,0.063]
[1745575357531,26.0,153.92,153.87,0.063]
[1745575357714,61.69926354,153.92,153.87,0.063]
[1745575358124,80.49107397,153.92,153.87,0.063]
[1745575358813,81.78895139,153.92,153.87,0.063]
[1745575359114,18.79181043,153.91,153.87,0.063]
[1745575359326,29.6014422,153.91,153.87,0.063]
[1745575359529,55.6014422,153.88,153.87,0.063]
[1745575359729,56.89931962,153.88,153.87,0.063]
[1745575362339,10.80963177,153.88,153.87,0.063]
[1745575362637,10.10750919,153.88,153.87,0.063]